[Event "Nordic Chess-ch 2019"]
[Site "Sarpsborg"]
[Date "2019.06.22"]
[Round "2.21"]
[White "Hamre, Kenneth"]
[Black "Berisha, Xhafer"]
[Result "1-0"]
[ECO "A34"]
[WhiteElo "2033"]
[BlackElo "1340"]
[Annotator "NA"]
[PlyCount "85"]
[EventDate "2019.06.21"]
[EventType "swiss"]
[EventCountry "NOR"]
[SourceTitle "playchess.com"]
[Source "ChessBase"]
[SourceQuality "1"]
[TimeControl "40/5400+30:1800+30"]

1. c4 {[%emt 0:00:00]} c5 {[%emt 0:01:20]} 2. Nc3 {[%emt 0:00:00]} e6 {[%emt 0:00:13]} 3. Nf3 {[%emt 0:00:12]} Nc6 {[%emt 0:00:35]} 4. g3 {[%emt 0:00:08]} Nf6 {[%emt 0:02:03]} 5. Bg2 {[%emt 0:00:40]} d6 {[%emt 0:02:34]} 6. O-O {[%emt 0:00:17]} Be7 {[%emt 0:01:21]} 7. d4 {[%emt 0:00:13]} b6 {[%emt 0:09:29]} 8. e4 {[%emt 0:11:12]} O-O {[%emt 0:04:25]} 9. d5 {[%emt 0:00:12]} Na5 {[%emt 0:01:05]} 10. b3 {[%emt 0:01:38]} e5 {[%emt 0:00:23]} 11. Ne1 {[%emt 0:03:30]} Bg4 {[%emt 0:00:36]} 12. f3 {[%emt 0:00:05]} Bd7 {[%emt 0:00:35]} 13. f4 {[%emt 0:01:20]} Bg4 {[%emt 0:00:32]} 14. Qd3 {[%emt 0:02:42]} Bh5 {[%emt 0:04:58]} 15. f5 {[%emt 0:02:50]} Nd7 {[%emt 0:00:54]} 16. h3 {[%emt 0:01:17]} f6 {[%emt 0:00:12]} 17. g4 {[%emt 0:00:04]} Bf7 {[%emt 0:00:24]} 18. Nf3 {[%emt 0:00:04]} a6 {[%emt 0:00:30]} 19. h4 {[%emt 0:02:52]} h6 {[%emt 0:00:34]} 20. Kh2 {[%emt 0:05:28]} Rb8 {[%emt 0:00:29]} 21. Rg1 {[%emt 0:01:20]} Kh7 {[%emt 0:02:30]} 22. Bh3 {[%emt 0:01:49]} Rg8 {[%emt 0:00:49]} 23. g5 {[%emt 0:00:38]} fxg5 {[%emt 0:01:47]} 24. hxg5 {[%emt 0:00:36]} Bh5 {[%emt 0:01:03]} 25. Bg4 {[%emt 0:05:15]} g6 {[%emt 0:10:50]} 26. fxg6+ {[%emt 0:15:51]} Bxg6 {[%emt 0:00:38]} 27. gxh6 {[%emt 0:00:40]} Nf6 {[%emt 0:00:52]} 28. Ng5+ {[%emt 0:00:15]} Kh8 {[%emt 0:00:52]} 29. Be6 {[%emt 0:01:21]} Rf8 {[%emt 0:00:50]} 30. Be3 {[%emt 0:14:29]} Nh5 {[%emt 0:00:40]} 31. Raf1 {[%emt 0:00:44]} Rxf1 {[%emt 0:02:12]} 32. Qxf1 {[%emt 0:00:03]} Bxg5 {[%emt 0:02:44]} 33. Rxg5 {[%emt 0:02:12]} Kh7 {[%emt 0:02:19]} 34. Bf7 {[%emt 0:02:28]} Nf4 {[%emt 0:02:28]} 35. Bxg6+ {[%emt 0:02:12]} Kxh6 {[%emt 0:01:23]} 36. Rg4 {[%emt 0:01:13]} Qf6 {[%emt 0:04:53]} 37. Bxf4+ {[%emt 0:03:34]} exf4 {[%emt 0:01:16]} 38. Qh3+ {[%emt 0:00:31]} Kg7 {[%emt 0:00:14]} 39. Bf5+ {[%emt 0:00:17]} Kf8 {[%emt 0:00:50]} 40. Rg6 {[%emt 0:00:39]} Qd4 {[%emt 0:00:22]} 41. Qh6+ {[%emt 0:30:05]} Ke8 {[%emt 0:33:52]} 42. Rg8+ {[%emt 0:01:03]} Kf7 {[%emt 0:01:06]} 43. Qe6# {[%emt 0:00:15]} 1-0

[Event "Nordic Chess-ch 2019"]
[Site "Sarpsborg"]
[Date "2019.06.22"]
[Round "2.22"]
[White "Nilsen, Tobias Lang"]
[Black "Kro, Andreas Fuskeland"]
[Result "1-0"]
[ECO "C06"]
[WhiteElo "1986"]
[BlackElo "1565"]
[Annotator "NA"]
[PlyCount "105"]
[EventDate "2019.06.21"]
[EventType "swiss"]
[EventCountry "NOR"]
[SourceTitle "playchess.com"]
[Source "ChessBase"]
[SourceQuality "1"]
[TimeControl "40/5400+30:1800+30"]

1. e4 {[%emt 0:00:00]} e6 {[%emt 0:00:00]} 2. d4 {[%emt 0:00:00]} d5 {[%emt 0:00:00]} 3. Nd2 {[%emt 0:00:00]} Nf6 {[%emt 0:00:00]} 4. e5 {[%emt 0:00:00]} Nfd7 {[%emt 0:00:00]} 5. Bd3 {[%emt 0:00:12]} c5 {[%emt 0:00:10]} 6. c3 {[%emt 0:00:06]} Nc6 {[%emt 0:00:16]} 7. Ne2 {[%emt 0:00:11]} Qb6 {[%emt 0:01:46]} 8. Nf3 {[%emt 0:00:11]} Be7 {[%emt 0:01:20]} 9. O-O {[%emt 0:08:49]} f6 {[%emt 0:04:23]} 10. exf6 {[%emt 0:09:41]} Nxf6 {[%emt 0:01:37]} 11. Nf4 {[%emt 0:08:15]} cxd4 {[%emt 0:13:25]} 12. cxd4 {[%emt 0:03:03]} Bd6 {[%emt 0:03:04]} 13. Re1 {[%emt 0:06:05]} Bxf4 {[%emt 0:03:23]} 14. Bxf4 {[%emt 0:00:08]} Bd7 {[%emt 0:01:56]} 15. a3 {[%emt 0:29:40]} O-O {[%emt 0:12:04]} 16. Qd2 {[%emt 0:01:49]} Na5 {[%emt 0:08:36]} 17. Rad1 {[%emt 0:00:28]} Rac8 {[%emt 0:04:46]} 18. Ne5 {[%emt 0:05:45]} Nb3 {[%emt 0:07:17]} 19. Qe3 {[%emt 0:00:06]} Nxd4 {[%emt 0:05:39]} 20. Bxh7+ {[%emt 0:00:12]} Kxh7 {[%emt 0:00:13]} 21. Rxd4 {[%emt 0:00:06]} Be8 {[%emt 0:03:39]} 22. Qh3+ {[%emt 0:05:35]} Kg8 {[%emt 0:00:42]} 23. Rb4 {[%emt 0:00:08]} Qa6 {[%emt 0:04:06]} 24. Be3 {[%emt 0:00:44]} Qd6 {[%emt 0:09:37]} 25. Bf4 {[%emt 0:00:29]} Ne4 {[%emt 0:02:52]} 26. Ng6 {[%emt 0:00:58]} Rxf4 {[%emt 0:01:56]} 27. Nxf4 {[%emt 0:00:07]} Bf7 {[%emt 0:00:47]} 28. Qe3 {[%emt 0:05:29]} b6 {[%emt 0:02:14]} 29. f3 {[%emt 0:01:48]} Nc5 {[%emt 0:00:28]} 30. Nd3 {[%emt 0:00:30]} a5 {[%emt 0:01:30]} 31. Rg4 {[%emt 0:01:24]} Nxd3 {[%emt 0:01:44]} 32. Qxd3 {[%emt 0:00:11]} Qc5+ {[%emt 0:00:20]} 33. Qd4 {[%emt 0:02:32]} Qxd4+ {[%emt 0:00:21]} 34. Rxd4 {[%emt 0:00:06]} Rc2 {[%emt 0:00:40]} 35. b4 {[%emt 0:00:51]} Ra2 {[%emt 0:01:29]} 36. bxa5 {[%emt 0:01:19]} Rxa3 {[%emt 0:00:16]} 37. axb6 {[%emt 0:00:07]} Rb3 {[%emt 0:00:10]} 38. Kf2 {[%emt 0:00:50]} Rxb6 {[%emt 0:00:10]} 39. Re2 {[%emt 0:00:18]} Bg6 {[%emt 0:01:21]} 40. Kg3 {[%emt 0:00:26]} Kf7 {[%emt 0:00:37]} 41. Kf4 {[%emt 0:30:08]} Kf6 {[%emt 0:31:21]} 42. g4 {[%emt 0:00:07]} Be8 {[%emt 0:00:32]} 43. h4 {[%emt 0:00:14]} g6 {[%emt 0:00:30]} 44. g5+ {[%emt 0:00:34]} Kf7 {[%emt 0:00:28]} 45. Re3 {[%emt 0:02:02]} Rb1 {[%emt 0:01:46]} 46. Ke5 {[%emt 0:00:23]} Rb6 {[%emt 0:00:43]} 47. Ra3 {[%emt 0:00:57]} Rb7 {[%emt 0:00:27]} 48. Ra6 {[%emt 0:00:35]} Bd7 {[%emt 0:00:38]} 49. Rf4+ {[%emt 0:00:35]} Ke7 {[%emt 0:00:34]} 50. Rf6 {[%emt 0:00:07]} Rb3 {[%emt 0:00:16]} 51. Rxg6 {[%emt 0:00:19]} Rxf3 {[%emt 0:00:32]} 52. Rg7+ {[%emt 0:00:07]} Ke8 {[%emt 0:01:26]} 53. Ra8+ {[%emt 0:00:08]} 1-0

[Event "Nordic Chess-ch 2019"]
[Site "Sarpsborg"]
[Date "2019.06.22"]
[Round "2.23"]
[White "Pettersen, Morgan Buckholm"]
[Black "Unneland, Mathias"]
[Result "0-1"]
[ECO "E94"]
[WhiteElo "1508"]
[BlackElo "1980"]
[Annotator "NA"]
[PlyCount "64"]
[EventDate "2019.06.21"]
[EventType "swiss"]
[EventCountry "NOR"]
[SourceTitle "playchess.com"]
[Source "ChessBase"]
[SourceQuality "1"]
[TimeControl "40/5400+30:1800+30"]

1. d4 {[%emt 0:00:00]} Nf6 {[%emt 0:00:00]} 2. c4 {[%emt 0:00:00]} g6 {[%emt 0:00:00]} 3. Nc3 {[%emt 0:00:01]} Bg7 {[%emt 0:00:00]} 4. e4 {[%emt 0:00:06]} d6 {[%emt 0:00:00]} 5. Nf3 {[%emt 0:00:09]} O-O {[%emt 0:00:00]} 6. Be2 {[%emt 0:00:04]} Na6 {[%emt 0:00:44]} 7. O-O {[%emt 0:00:35]} e5 {[%emt 0:00:19]} 8. dxe5 {[%emt 0:00:11]} dxe5 {[%emt 0:00:05]} 9. Qxd8 {[%emt 0:00:10]} Rxd8 {[%emt 0:00:04]} 10. Nd5 {[%emt 0:00:23]} Nxe4 {[%emt 0:07:07]} 11. Rd1 {[%emt 0:03:42]} Re8 {[%emt 0:02:08]} 12. Ng5 {[%emt 0:10:57]} Nf6 {[%emt 0:03:12]} 13. Nc3 {[%emt 0:09:27]} h6 {[%emt 0:04:29]} 14. Nge4 {[%emt 0:01:33]} Nxe4 {[%emt 0:01:07]} 15. Nxe4 {[%emt 0:00:06]} f5 {[%emt 0:02:27]} 16. Nc3 {[%emt 0:00:43]} c6 {[%emt 0:01:21]} 17. f3 {[%emt 0:04:27]} Nb4 {[%emt 0:02:05]} 18. Bf1 {[%emt 0:03:17]} e4 {[%emt 0:06:28]} 19. fxe4 {[%emt 0:01:22]} fxe4 {[%emt 0:00:09]} 20. Rd6 {[%emt 0:02:55]} Bf5 {[%emt 0:03:41]} 21. Bf4 {[%emt 0:01:23]} Bf8 {[%emt 0:00:36]} 22. Rd2 {[%emt 0:01:59]} Bc5+ {[%emt 0:00:20]} 23. Kh1 {[%emt 0:00:19]} e3 {[%emt 0:03:41]} 24. Rdd1 {[%emt 0:00:59]} Kg7 {[%emt 0:15:50]} 25. Rac1 {[%emt 0:05:04]} Rad8 {[%emt 0:05:11]} 26. Be2 {[%emt 0:11:48]} Nd3 {[%emt 0:07:04]} 27. Bxd3 {[%emt 0:02:44]} Bxd3 {[%emt 0:00:09]} 28. Re1 {[%emt 0:01:43]} e2 {[%emt 0:00:32]} 29. Bg3 {[%emt 0:00:34]} Be3 {[%emt 0:00:15]} 30. Ra1 {[%emt 0:02:23]} Bd2 {[%emt 0:00:28]} 31. Rg1 {[%emt 0:00:10]} Bxc4 {[%emt 0:00:14]} 32. Be1 {[%emt 0:00:30]} Be3 {[%emt 0:00:06]} 0-1

[Event "Nordic Chess-ch 2019"]
[Site "Sarpsborg"]
[Date "2019.06.22"]
[Round "2.24"]
[White "Stellas, Dimitrios"]
[Black "Granholt, Morten"]
[Result "1-0"]
[ECO "D00"]
[WhiteElo "1976"]
[BlackElo "1478"]
[Annotator "NA"]
[PlyCount "33"]
[EventDate "2019.06.21"]
[EventType "swiss"]
[EventCountry "NOR"]
[SourceTitle "playchess.com"]
[Source "ChessBase"]
[SourceQuality "1"]
[TimeControl "40/5400+30:1800+30"]

1. d4 {[%emt 0:01:24]} Nf6 {[%emt 0:00:00]} 2. Bf4 {[%emt 0:00:22]} d5 {[%emt 0:01:53]} 3. e3 {[%emt 0:00:32]} e6 {[%emt 0:00:13]} 4. Nd2 {[%emt 0:00:55]} c5 {[%emt 0:01:02]} 5. c3 {[%emt 0:00:40]} Bd6 {[%emt 0:01:28]} 6. Bg3 {[%emt 0:00:34]} O-O {[%emt 0:01:55]} 7. Ngf3 {[%emt 0:00:38]} Bxg3 {[%emt 0:01:14]} 8. hxg3 {[%emt 0:00:16]} cxd4 {[%emt 0:01:42]} 9. exd4 {[%emt 0:00:55]} h6 {[%emt 0:06:06]} 10. Bd3 {[%emt 0:01:47]} b6 {[%emt 0:00:55]} 11. Qe2 {[%emt 0:01:24]} Nbd7 {[%emt 0:05:08]} 12. Ne5 {[%emt 0:02:40]} Qc7 {[%emt 0:01:41]} 13. g4 {[%emt 0:02:16]} Nh7 {[%emt 0:01:52]} 14. Ndf3 {[%emt 0:08:34]} Qd8 {[%emt 0:07:12]} 15. O-O-O {[%emt 0:12:41]} Ng5 {[%emt 0:03:21]} 16. Rh5 {[%emt 0:02:29]} Nf6 {[%emt 0:02:51]} 17. Nxg5 {[%emt 0:04:11]} 1-0

[Event "Nordic Chess-ch 2019"]
[Site "Sarpsborg"]
[Date "2019.06.22"]
[Round "2.25"]
[White "Hanebuth, Katja"]
[Black "Dingertz, Erik"]
[Result "0-1"]
[ECO "A47"]
[WhiteElo "1463"]
[BlackElo "1969"]
[Annotator "NA"]
[PlyCount "88"]
[EventDate "2019.06.21"]
[EventType "swiss"]
[EventCountry "NOR"]
[SourceTitle "playchess.com"]
[Source "ChessBase"]
[SourceQuality "1"]
[TimeControl "40/5400+30:1800+30"]

1. d4 {[%emt 0:00:00]} Nf6 {[%emt 0:00:00]} 2. Nf3 {[%emt 0:00:00]} e6 {[%emt 0:00:00]} 3. e3 {[%emt 0:00:19]} b6 {[%emt 0:00:36]} 4. g3 {[%emt 0:03:45]} Bb7 {[%emt 0:00:23]} 5. Bg2 {[%emt 0:01:21]} d5 {[%emt 0:01:35]} 6. b3 {[%emt 0:03:05]} Nbd7 {[%emt 0:00:25]} 7. c4 {[%emt 0:04:27]} Be7 {[%emt 0:03:11]} 8. O-O {[%emt 0:01:40]} O-O {[%emt 0:00:37]} 9. cxd5 {[%emt 0:02:25]} exd5 {[%emt 0:00:12]} 10. Ba3 {[%emt 0:01:37]} Bxa3 {[%emt 0:01:04]} 11. Nxa3 {[%emt 0:00:10]} Qe7 {[%emt 0:00:02]} 12. Nc2 {[%emt 0:01:50]} c5 {[%emt 0:00:45]} 13. Re1 {[%emt 0:02:00]} Ne4 {[%emt 0:02:04]} 14. Qd3 {[%emt 0:02:43]} Qf6 {[%emt 0:08:03]} 15. Rf1 {[%emt 0:02:26]} a5 {[%emt 0:01:20]} 16. dxc5 {[%emt 0:09:33]} bxc5 {[%emt 0:01:07]} 17. Qb5 {[%emt 0:01:38]} Bc6 {[%emt 0:00:20]} 18. Qd3 {[%emt 0:00:19]} Rab8 {[%emt 0:06:55]} 19. a4 {[%emt 0:05:58]} Nc3 {[%emt 0:06:15]} 20. Nd2 {[%emt 0:01:47]} Ne5 {[%emt 0:01:03]} 21. Qa6 {[%emt 0:08:18]} Ra8 {[%emt 0:00:03]} 22. Qb6 {[%emt 0:00:07]} Qd6 {[%emt 0:00:06]} 23. f4 {[%emt 0:06:33]} Nd7 {[%emt 0:00:12]} 24. Nc4 {[%emt 0:00:29]} Qe6 {[%emt 0:03:10]} 25. f5 {[%emt 0:02:22]} Ne2+ {[%emt 0:02:31]} 26. Kh1 {[%emt 0:03:26]} Nxg3+ {[%emt 0:00:20]} 27. Kg1 {[%emt 0:01:00]} Ne2+ {[%emt 0:00:23]} 28. Kh1 {[%emt 0:00:22]} Qh6 {[%emt 0:00:56]} 29. Qc7 {[%emt 0:00:38]} Rfc8 {[%emt 0:00:10]} 30. Qd6 {[%emt 0:04:09]} dxc4 {[%emt 0:00:19]} 31. Qxh6 gxh6 {[%emt 0:00:33]} 32. bxc4 {[%emt 0:01:31]} Bxg2+ 33. Kxg2 {[%emt 0:00:14]} Ne5 {[%emt 0:01:13]} 34. Kf2 {[%emt 0:02:25]} Nc3 {[%emt 0:00:06]} 35. Rg1+ {[%emt 0:02:49]} Kf8 {[%emt 0:00:06]} 36. Ra3 {[%emt 0:00:44]} Ne4+ {[%emt 0:00:17]} 37. Ke2 {[%emt 0:00:47]} Rd8 {[%emt 0:00:13]} 38. Na1 {[%emt 0:08:16]} Rd2+ {[%emt 0:00:14]} 39. Kf1 {[%emt 0:00:58]} Rf2+ {[%emt 0:00:15]} 40. Ke1 {[%emt 0:00:20]} Nf3+ {[%emt 0:00:02]} 41. Kd1 {[%emt 0:30:21]} Rd8+ {[%emt 0:30:01]} 42. Kc1 {[%emt 0:00:20]} Nxg1 {[%emt 0:00:03]} 43. Rb3 {[%emt 0:01:30]} Rdd2 {[%emt 0:00:23]} 44. f6 {[%emt 0:01:37]} Rf1# {[%emt 0:00:05]} 0-1

[Event "Nordic Chess-ch 2019"]
[Site "Sarpsborg"]
[Date "2019.06.22"]
[Round "2.26"]
[White "Schouten, Mathias Lind"]
[Black "Nordtug, Per Oistein"]
[Result "1-0"]
[ECO "B60"]
[WhiteElo "1967"]
[BlackElo "1456"]
[Annotator "NA"]
[PlyCount "53"]
[EventDate "2019.06.21"]
[EventType "swiss"]
[EventCountry "NOR"]
[SourceTitle "playchess.com"]
[Source "ChessBase"]
[SourceQuality "1"]
[TimeControl "40/5400+30:1800+30"]

1. e4 {[%emt 0:00:00]} c5 {[%emt 0:00:01]} 2. Nf3 {[%emt 0:00:00]} d6 {[%emt 0:00:10]} 3. d4 {[%emt 0:00:00]} cxd4 {[%emt 0:00:32]} 4. Nxd4 {[%emt 0:00:00]} Nc6 {[%emt 0:00:07]} 5. Nc3 {[%emt 0:00:27]} Nf6 {[%emt 0:00:27]} 6. Bg5 {[%emt 0:00:45]} Bd7 {[%emt 0:01:57]} 7. Be2 {[%emt 0:05:24]} e5 {[%emt 0:00:53]} 8. Ndb5 {[%emt 0:09:13]} Be6 {[%emt 0:03:19]} 9. Bxf6 {[%emt 0:05:34]} Qxf6 {[%emt 0:05:23]} 10. Nc7+ {[%emt 0:01:05]} Kd7 {[%emt 0:02:41]} 11. Nxa8 {[%emt 0:00:12]} Be7 {[%emt 0:00:26]} 12. Nd5 {[%emt 0:01:47]} Qg6 {[%emt 0:01:20]} 13. Nac7 {[%emt 0:06:34]} Qxg2 {[%emt 0:01:19]} 14. Bf3 {[%emt 0:00:46]} Qh3 {[%emt 0:01:58]} 15. Nxe6 {[%emt 0:00:29]} fxe6 {[%emt 0:00:24]} 16. Nxe7 {[%emt 0:00:57]} Kxe7 {[%emt 0:00:19]} 17. Rg1 {[%emt 0:01:45]} g6 {[%emt 0:00:29]} 18. c3 {[%emt 0:00:24]} Qxh2 {[%emt 0:00:25]} 19. Rg3 {[%emt 0:00:13]} Rf8 {[%emt 0:01:56]} 20. Qe2 {[%emt 0:00:20]} Rf6 {[%emt 0:02:53]} 21. O-O-O {[%emt 0:00:12]} Qh6+ {[%emt 0:00:22]} 22. Qe3 {[%emt 0:00:12]} Qf8 {[%emt 0:01:03]} 23. Rh1 {[%emt 0:00:11]} h5 {[%emt 0:00:16]} 24. Kd2 {[%emt 0:01:28]} b6 {[%emt 0:00:17]} 25. Ke2 {[%emt 0:01:10]} Na5 {[%emt 0:00:17]} 26. b3 {[%emt 0:00:16]} Nb7 {[%emt 0:01:35]} 27. Rhg1 {[%emt 0:00:42]} 1-0

[Event "Nordic Chess-ch 2019"]
[Site "Sarpsborg"]
[Date "2019.06.22"]
[Round "2.27"]
[White "Skaar, Ben Samuel Groth"]
[Black "Tenold, Andreas"]
[Result "0-1"]
[ECO "B36"]
[WhiteElo "1362"]
[BlackElo "1959"]
[Annotator "NA"]
[PlyCount "60"]
[EventDate "2019.06.21"]
[EventType "swiss"]
[EventCountry "NOR"]
[SourceTitle "playchess.com"]
[Source "ChessBase"]
[SourceQuality "1"]
[TimeControl "40/5400+30:1800+30"]

1. e4 {[%emt 0:00:00]} c5 {[%emt 0:00:00]} 2. Nf3 {[%emt 0:00:00]} Nc6 {[%emt 0:00:00]} 3. d4 {[%emt 0:00:00]} cxd4 {[%emt 0:00:03]} 4. Nxd4 {[%emt 0:00:00]} g6 {[%emt 0:00:36]} 5. c4 {[%emt 0:01:11]} Nf6 {[%emt 0:02:56]} 6. Nc3 {[%emt 0:00:14]} d6 {[%emt 0:00:20]} 7. Be2 {[%emt 0:00:32]} Nxd4 {[%emt 0:00:56]} 8. Qxd4 {[%emt 0:00:11]} Bg7 {[%emt 0:00:04]} 9. Qd1 {[%emt 0:00:32]} O-O {[%emt 0:00:41]} 10. O-O {[%emt 0:00:08]} Be6 {[%emt 0:01:01]} 11. Be3 {[%emt 0:00:48]} Rc8 {[%emt 0:08:26]} 12. Qa4 {[%emt 0:01:40]} Qd7 {[%emt 0:09:26]} 13. Qxa7 {[%emt 0:07:05]} Bxc4 {[%emt 0:03:50]} 14. Bxc4 {[%emt 0:00:08]} Rxc4 {[%emt 0:00:03]} 15. f3 {[%emt 0:00:29]} Rfc8 {[%emt 0:07:00]} 16. Rac1 {[%emt 0:05:46]} R4c6 {[%emt 0:21:47]} 17. Qa3 {[%emt 0:09:22]} b5 {[%emt 0:06:11]} 18. Ne2 {[%emt 0:03:00]} Rc4 {[%emt 0:05:47]} 19. Rxc4 {[%emt 0:04:13]} bxc4 {[%emt 0:00:10]} 20. Rc1 {[%emt 0:00:11]} d5 {[%emt 0:02:07]} 21. exd5 Nxd5 {[%emt 0:00:48]} 22. Bf2 {[%emt 0:12:39]} Qb7 23. Bd4 {[%emt 0:04:24]} e5 {[%emt 0:04:12]} 24. Bf2 {[%emt 0:04:27]} Nb4 {[%emt 0:02:39]} 25. Be1 {[%emt 0:04:42]} Nd3 {[%emt 0:01:31]} 26. Rb1 {[%emt 0:00:37]} e4 {[%emt 0:02:16]} 27. fxe4 {[%emt 0:05:06]} Qxe4 {[%emt 0:02:00]} 28. Ng3 {[%emt 0:00:24]} Bd4+ {[%emt 0:00:58]} 29. Kh1 {[%emt 0:00:48]} Nf2+ {[%emt 0:00:20]} 30. Bxf2 {[%emt 0:00:12]} Qxb1+ {[%emt 0:00:04]} 0-1

[Event "Nordic Chess-ch 2019"]
[Site "Sarpsborg"]
[Date "2019.06.22"]
[Round "2.28"]
[White "Holand, Per Fredrik"]
[Black "Asbjornsen, Jakob"]
[Result "1/2-1/2"]
[ECO "C26"]
[WhiteElo "1883"]
[BlackElo "1359"]
[Annotator "NA"]
[PlyCount "99"]
[EventDate "2019.06.21"]
[EventType "swiss"]
[EventCountry "NOR"]
[SourceTitle "playchess.com"]
[Source "ChessBase"]
[SourceQuality "1"]
[TimeControl "40/5400+30:1800+30"]

1. e4 {[%emt 0:05:44]} e5 {[%emt 0:00:00]} 2. Nc3 {[%emt 0:00:46]} Nf6 {[%emt 0:00:00]} 3. g3 {[%emt 0:00:09]} Nc6 {[%emt 0:00:15]} 4. Bg2 {[%emt 0:00:07]} Bc5 {[%emt 0:00:34]} 5. Nge2 {[%emt 0:00:08]} d6 {[%emt 0:00:58]} 6. Na4 {[%emt 0:03:58]} Bb6 {[%emt 0:01:08]} 7. Nxb6 {[%emt 0:03:44]} axb6 {[%emt 0:00:20]} 8. O-O {[%emt 0:00:22]} Be6 {[%emt 0:02:55]} 9. d4 {[%emt 0:08:22]} Bc4 {[%emt 0:11:02]} 10. d5 {[%emt 0:08:45]} Nd4 {[%emt 0:03:26]} 11. Nxd4 {[%emt 0:00:06]} Bxf1 {[%emt 0:00:16]} 12. Bxf1 {[%emt 0:02:37]} exd4 {[%emt 0:01:09]} 13. Bb5+ {[%emt 0:01:26]} Kf8 {[%emt 0:02:53]} 14. Qxd4 {[%emt 0:02:57]} Nd7 {[%emt 0:05:46]} 15. Bxd7 {[%emt 0:07:59]} Qxd7 {[%emt 0:00:15]} 16. b3 {[%emt 0:00:06]} Qg4 {[%emt 0:04:15]} 17. Bb2 {[%emt 0:01:07]} h5 {[%emt 0:02:53]} 18. f3 {[%emt 0:01:17]} Qg6 {[%emt 0:00:26]} 19. Qc4 {[%emt 0:06:00]} Rc8 {[%emt 0:04:47]} 20. e5 {[%emt 0:44:20]} dxe5 {[%emt 0:07:20]} 21. Bxe5 {[%emt 0:00:00]} Qg5 {[%emt 0:00:11]} 22. Re1 {[%emt 0:00:00]} Qd8 {[%emt 0:50:11]} 23. Qd4 {[%emt 0:00:00]} Qg5 {[%emt 0:00:00]} 24. h4 {[%emt 0:00:00]} Qg6 {[%emt 0:00:00]} 25. Re4 {[%emt 0:00:00]} f6 {[%emt 0:00:00]} 26. Bf4 {[%emt 0:03:00]} Kg8 {[%emt 0:00:00]} 27. c4 {[%emt 0:00:00]} Kh7 {[%emt 0:00:00]} 28. Kf2 {[%emt 0:00:00]} Rhe8 {[%emt 0:00:00]} 29. a4 {[%emt 0:00:00]} Rxe4 {[%emt 0:00:00]} 30. Qxe4 {[%emt 0:00:00]} Qxe4 {[%emt 0:00:00]} 31. fxe4 {[%emt 0:00:00]} Kg6 {[%emt 0:00:00]} 32. Ke3 {[%emt 0:00:00]} Kf7 {[%emt 0:00:00]} 33. Kd4 {[%emt 0:00:00]} Ke7 {[%emt 0:00:00]} 34. e5 {[%emt 0:00:00]} fxe5+ {[%emt 0:00:00]} 35. Bxe5 {[%emt 0:00:00]} g6 {[%emt 0:00:00]} 36. Bf4 {[%emt 0:00:00]} Kf7 {[%emt 0:00:00]} 37. Kc3 {[%emt 0:00:00]} c6 {[%emt 0:00:00]} 38. dxc6 {[%emt 0:00:00]} Rxc6 {[%emt 0:00:00]} 39. Kb4 {[%emt 0:00:00]} Ke6 {[%emt 0:00:00]} 40. Kb5 {[%emt 0:00:00]} Kd7 {[%emt 0:00:00]} 41. b4 {[%emt 0:33:21]} Kc8 {[%emt 0:25:58]} 42. c5 {[%emt 0:00:19]} bxc5 {[%emt 0:00:37]} 43. bxc5 {[%emt 0:00:04]} Kd7 {[%emt 0:01:00]} 44. a5 {[%emt 0:00:39]} Ra6 {[%emt 0:01:40]} 45. Bb8 {[%emt 0:02:19]} Ke6 {[%emt 0:00:34]} 46. Bc7 {[%emt 0:00:00]} Rc6 {[%emt 0:00:00]} 47. Bf4 {[%emt 0:00:00]} Kd5 {[%emt 0:00:00]} 48. Bd6 {[%emt 0:00:00]} Ke6 {[%emt 0:00:00]} 49. Bf4 {[%emt 0:00:00]} Kd7 {[%emt 0:00:00]} 50. Bd6 {[%emt 0:00:00]} 1/2-1/2

[Event "Nordic Chess-ch 2019"]
[Site "Sarpsborg"]
[Date "2019.06.22"]
[Round "2.29"]
[White "Stabbetorp, Jon Anders"]
[Black "Hoiom, Jonas"]
[Result "1-0"]
[ECO "B01"]
[WhiteElo "1817"]
[BlackElo "1317"]
[Annotator "NA"]
[PlyCount "73"]
[EventDate "2019.06.21"]
[EventType "swiss"]
[EventCountry "NOR"]
[SourceTitle "playchess.com"]
[Source "ChessBase"]
[SourceQuality "1"]
[TimeControl "40/5400+30:1800+30"]

1. e4 {[%emt 0:00:00]} d5 {[%emt 0:00:00]} 2. exd5 {[%emt 0:00:00]} Qxd5 {[%emt 0:00:00]} 3. Nf3 {[%emt 0:00:00]} Nf6 {[%emt 0:00:00]} 4. d4 {[%emt 0:00:18]} Bf5 {[%emt 0:01:15]} 5. c4 {[%emt 0:01:43]} Qd8 {[%emt 0:00:28]} 6. Nc3 {[%emt 0:00:33]} e6 {[%emt 0:00:27]} 7. g3 {[%emt 0:01:35]} Nbd7 {[%emt 0:05:03]} 8. Bg2 {[%emt 0:00:20]} c6 {[%emt 0:00:10]} 9. O-O {[%emt 0:01:02]} Bb4 {[%emt 0:00:07]} 10. Qb3 {[%emt 0:02:09]} Bxc3 {[%emt 0:01:23]} 11. bxc3 {[%emt 0:01:05]} Qb6 {[%emt 0:01:03]} 12. Nh4 {[%emt 0:06:51]} Bg6 {[%emt 0:00:37]} 13. Nxg6 {[%emt 0:00:14]} hxg6 {[%emt 0:00:08]} 14. Ba3 {[%emt 0:01:41]} O-O-O {[%emt 0:02:32]} 15. Qa4 {[%emt 0:03:20]} Qc7 {[%emt 0:02:03]} 16. Qxa7 {[%emt 0:05:48]} Rh5 {[%emt 0:01:45]} 17. Bb4 {[%emt 0:15:16]} Rdh8 {[%emt 0:03:33]} 18. h3 {[%emt 0:06:35]} Nh7 {[%emt 0:03:50]} 19. Qa3 {[%emt 0:02:22]} c5 {[%emt 0:03:59]} 20. Qa8+ {[%emt 0:05:22]} Nb8 {[%emt 0:01:46]} 21. Bxc5 {[%emt 0:02:51]} Ng5 {[%emt 0:01:34]} 22. h4 {[%emt 0:00:38]} Rxh4 {[%emt 0:02:34]} 23. gxh4 {[%emt 0:01:27]} Rxh4 {[%emt 0:00:10]} 24. Qxb7+ {[%emt 0:00:43]} Qxb7 {[%emt 0:00:23]} 25. Bxb7+ {[%emt 0:00:06]} Kxb7 {[%emt 0:00:07]} 26. Rfb1+ {[%emt 0:01:28]} Kc8 {[%emt 0:00:21]} 27. a4 {[%emt 0:00:38]} Nf3+ {[%emt 0:00:32]} 28. Kg2 {[%emt 0:00:10]} Nd2 {[%emt 0:00:05]} 29. Kg3 {[%emt 0:01:55]} Rh5 {[%emt 0:01:03]} 30. Rh1 {[%emt 0:01:54]} Rg5+ {[%emt 0:02:38]} 31. Kf4 {[%emt 0:00:37]} Rf5+ {[%emt 0:00:10]} 32. Ke3 {[%emt 0:00:22]} Nxc4+ {[%emt 0:00:04]} 33. Ke2 {[%emt 0:00:56]} g5 {[%emt 0:02:21]} 34. Rab1 {[%emt 0:02:01]} Nd7 {[%emt 0:01:11]} 35. Rb4 {[%emt 0:01:07]} Na5 {[%emt 0:01:17]} 36. Bd6 {[%emt 0:01:09]} Rd5 {[%emt 0:01:08]} 37. Rh8+ {[%emt 0:00:26]} 1-0